[Event "Titled Tuesday Blitz May 30 Early 2023"]
[White "Uzcategui Rodriguez, Alejandro"]
[Black "Girya, Olga"]
[WhiteFideId "3903400"]
[BlackFideId "4195752"]
[WhiteElo "2252"]
[BlackElo "2263"]
[Result "1/2-1/2"]
[Round "01"]
[TimeControl "180+2"]
[Date "2023.05.30"]
[WhiteClock "0:00:11"]
[BlackClock "0:00:06"]

1. d4 {[%clk 0:02:58]}  Nf6 {[%clk 0:02:58]} 2. Nf3 {[%clk 0:02:59]}  d5 {[%clk 0:02:58]} 3. Bg5 {[%clk 0:02:59]}  Ne4 {[%clk 0:02:56]} 4. Be3 {[%clk 0:02:59]}  Bf5 {[%clk 0:02:53]} 5. g3 {[%clk 0:03:00]}  e6 {[%clk 0:02:53]} 6. Bg2 {[%clk 0:03:00]}  h6 {[%clk 0:02:53]} 7. O-O {[%clk 0:03:00]}  Nd7 {[%clk 0:02:53]} 8. Nbd2 {[%clk 0:03:01]}  Bd6 {[%clk 0:02:51]} 9. c4 {[%clk 0:03:01]}  c6 {[%clk 0:02:51]} 10. a3 {[%clk 0:02:59]}  a5 {[%clk 0:02:47]} 11. b3 {[%clk 0:02:56]}  O-O {[%clk 0:02:43]} 12. Rc1 {[%clk 0:02:54]}  Bxa3 {[%clk 0:02:42]} 13. Ra1 {[%clk 0:02:53]}  Bb4 {[%clk 0:02:42]} 14. Nxe4 {[%clk 0:02:52]}  Bxe4 {[%clk 0:02:41]} 15. Nd2 {[%clk 0:02:53]}  Bxg2 {[%clk 0:02:40]} 16. Kxg2 {[%clk 0:02:54]}  Nf6 {[%clk 0:02:35]} 17. Qc2 {[%clk 0:02:53]}  Qe7 {[%clk 0:02:19]} 18. Nf3 {[%clk 0:02:47]}  Rfd8 {[%clk 0:02:17]} 19. Bf4 {[%clk 0:02:46]}  Ne4 {[%clk 0:02:04]} 20. h3 {[%clk 0:02:44]}  Rdc8 {[%clk 0:01:45]} 21. Ne5 {[%clk 0:02:41]}  Nf6 {[%clk 0:01:32]} 22. c5 {[%clk 0:02:34]}  Nd7 {[%clk 0:01:30]} 23. Nd3 {[%clk 0:02:34]}  Qd8 {[%clk 0:01:01]} 24. Nxb4 {[%clk 0:02:25]}  axb4 {[%clk 0:01:00]} 25. Qd2 {[%clk 0:02:25]}  Rxa1 {[%clk 0:00:35]} 26. Rxa1 {[%clk 0:02:26]}  Ra8 {[%clk 0:00:36]} 27. Rxa8 {[%clk 0:02:21]}  Qxa8 {[%clk 0:00:36]} 28. Qxb4 {[%clk 0:02:21]}  Qa6 {[%clk 0:00:37]} 29. e3 {[%clk 0:01:58]}  f6 {[%clk 0:00:37]} 30. Bd6 {[%clk 0:01:57]}  e5 {[%clk 0:00:31]} 31. dxe5 {[%clk 0:01:53]}  Nxe5 {[%clk 0:00:18]} 32. Qf4 {[%clk 0:01:42]}  Nf7 {[%clk 0:00:16]} 33. Qf5 {[%clk 0:01:40]}  Qa8 {[%clk 0:00:12]} 34. Qe6 {[%clk 0:01:30]}  Qd8 {[%clk 0:00:12]} 35. Bf4 {[%clk 0:01:22]}  Qa8 {[%clk 0:00:11]} 36. b4 {[%clk 0:01:22]}  Qd8 {[%clk 0:00:11]} 37. h4 {[%clk 0:01:22]}  Kf8 {[%clk 0:00:10]} 38. Bd6+ {[%clk 0:01:21]}  Kg8 {[%clk 0:00:11]} 39. Kf3 {[%clk 0:01:17]}  h5 {[%clk 0:00:11]} 40. Bf4 {[%clk 0:00:58]}  Qa8 {[%clk 0:00:10]} 41. Qf5 {[%clk 0:00:56]}  Qa2 {[%clk 0:00:10]} 42. Qc8+ {[%clk 0:00:53]}  Kh7 {[%clk 0:00:09]} 43. Qxb7 {[%clk 0:00:53]}  Ne5+ {[%clk 0:00:07]} 44. Bxe5 {[%clk 0:00:53]}  fxe5 {[%clk 0:00:07]} 45. Qd7 {[%clk 0:00:39]}  Qc4 {[%clk 0:00:06]} 46. Qf5+ {[%clk 0:00:39]}  g6 {[%clk 0:00:06]} 47. Qxe5 {[%clk 0:00:39]}  Qxb4 {[%clk 0:00:05]} 48. Qe7+ {[%clk 0:00:36]}  Kh6 {[%clk 0:00:06]} 49. Kg2 {[%clk 0:00:34]}  Qg4 {[%clk 0:00:05]} 50. Kh2 {[%clk 0:00:22]}  Qf3 {[%clk 0:00:04]} 51. Qg5+ {[%clk 0:00:22]}  Kh7 {[%clk 0:00:04]} 52. Qf4 {[%clk 0:00:22]}  Qd1 {[%clk 0:00:04]} 53. Qf7+ {[%clk 0:00:21]}  Kh6 {[%clk 0:00:04]} 54. Qf8+ {[%clk 0:00:20]}  Kh7 {[%clk 0:00:04]} 55. Qf7+ {[%clk 0:00:17]}  Kh6 {[%clk 0:00:05]} 56. e4 {[%clk 0:00:16]}  dxe4 {[%clk 0:00:03]} 57. Qf4+ {[%clk 0:00:15]}  Kh7 {[%clk 0:00:04]} 58. Qxe4 {[%clk 0:00:16]}  Qd7 {[%clk 0:00:04]} 59. Kg2 {[%clk 0:00:14]}  Qc7 {[%clk 0:00:04]} 60. Qe6 {[%clk 0:00:13]}  Qb7 {[%clk 0:00:03]} 61. Qd6 {[%clk 0:00:13]}  Qb5 {[%clk 0:00:03]} 62. Qe7+ {[%clk 0:00:13]}  Kh6 {[%clk 0:00:04]} 63. Qg5+ {[%clk 0:00:13]}  Kh7 {[%clk 0:00:04]} 64. Kh2 {[%clk 0:00:12]}  Qd3 {[%clk 0:00:04]} 65. g4 {[%clk 0:00:10]}  hxg4 {[%clk 0:00:03]} 66. h5 {[%clk 0:00:09]}  gxh5 {[%clk 0:00:03]} 67. Qxh5+ {[%clk 0:00:10]}  Kg7 {[%clk 0:00:03]} 68. Qxg4+ {[%clk 0:00:11]}  Kf7 {[%clk 0:00:04]} 69. Qg3 {[%clk 0:00:08]}  Qf5 {[%clk 0:00:03]} 70. Kg2 {[%clk 0:00:08]}  Qd5+ {[%clk 0:00:03]} 71. Qf3+ {[%clk 0:00:08]}  Ke6 {[%clk 0:00:03]} 72. Kg3 {[%clk 0:00:06]}  Qxf3+ {[%clk 0:00:03]} 73. Kxf3 {[%clk 0:00:07]}  Kd5 {[%clk 0:00:03]} 74. Ke3 {[%clk 0:00:08]}  Kxc5 {[%clk 0:00:04]} 75. Kd3 {[%clk 0:00:08]}  Kd5 {[%clk 0:00:04]} 76. f4 {[%clk 0:00:09]}  Ke6 {[%clk 0:00:05]} 77. Kc4 {[%clk 0:00:09]}  Kf5 {[%clk 0:00:05]} 78. Kc5 {[%clk 0:00:10]}  Kxf4 {[%clk 0:00:06]} 79. Kxc6 {[%clk 0:00:11]} 1/2-1/2


[Site "https://www.chess.com"]

[Event "Titled Tuesday Blitz May 30 Early 2023"]
[White "Arabidze, Meri"]
[Black "Korpics, Zsolt"]
[WhiteFideId "13604040"]
[BlackFideId "705241"]
[WhiteElo "2405"]
[BlackElo "2343"]
[Result "1-0"]
[Round "01"]
[TimeControl "180+2"]
[Date "2023.05.30"]
[WhiteClock "0:00:09"]
[BlackClock "0:00:00"]

1. d4 {[%clk 0:02:59]}  Nf6 {[%clk 0:02:59]} 2. Nf3 {[%clk 0:02:59]}  e6 {[%clk 0:02:59]} 3. c4 {[%clk 0:03:00]}  b6 {[%clk 0:02:59]} 4. Nc3 {[%clk 0:02:58]}  Bb7 {[%clk 0:02:54]} 5. Bg5 {[%clk 0:02:58]}  Bb4 {[%clk 0:02:54]} 6. e3 {[%clk 0:02:58]}  h6 {[%clk 0:02:53]} 7. Bh4 {[%clk 0:02:58]}  d5 {[%clk 0:02:46]} 8. Qa4+ {[%clk 0:02:53]}  Nc6 {[%clk 0:02:45]} 9. cxd5 {[%clk 0:02:53]}  Qxd5 {[%clk 0:02:17]} 10. Bb5 {[%clk 0:02:35]}  Bxc3+ {[%clk 0:02:15]} 11. bxc3 {[%clk 0:02:36]}  O-O {[%clk 0:02:15]} 12. Bxf6 {[%clk 0:02:25]}  gxf6 {[%clk 0:02:14]} 13. Bd3 {[%clk 0:02:12]}  f5 {[%clk 0:02:07]} 14. O-O {[%clk 0:02:11]}  Kh8 {[%clk 0:02:03]} 15. c4 {[%clk 0:02:09]}  Qd6 {[%clk 0:00:48]} 16. Qd1 {[%clk 0:02:08]}  Rg8 {[%clk 0:00:47]} 17. g3 {[%clk 0:02:06]}  Ne7 {[%clk 0:00:42]} 18. Nh4 {[%clk 0:02:00]}  Ng6 {[%clk 0:00:24]} 19. Qh5 {[%clk 0:02:00]}  Kh7 {[%clk 0:00:25]} 20. Rad1 {[%clk 0:01:41]}  Qe7 {[%clk 0:00:24]} 21. Nxg6 {[%clk 0:01:21]}  fxg6 {[%clk 0:00:24]} 22. Qh3 {[%clk 0:01:21]}  Qd6 {[%clk 0:00:21]} 23. f3 {[%clk 0:01:13]}  e5 {[%clk 0:00:19]} 24. d5 {[%clk 0:00:57]}  Qc5 {[%clk 0:00:19]} 25. Rfe1 {[%clk 0:00:57]}  Rae8 {[%clk 0:00:17]} 26. Qg2 {[%clk 0:00:52]}  Bc8 {[%clk 0:00:15]} 27. Kh1 {[%clk 0:00:48]}  Rgf8 {[%clk 0:00:16]} 28. e4 {[%clk 0:00:47]}  f4 {[%clk 0:00:14]} 29. Rg1 {[%clk 0:00:42]}  g5 {[%clk 0:00:13]} 30. gxf4 {[%clk 0:00:37]}  Rxf4 {[%clk 0:00:12]} 31. Be2 {[%clk 0:00:33]}  Ref8 {[%clk 0:00:12]} 32. Qg3 {[%clk 0:00:33]}  Qe3 {[%clk 0:00:12]} 33. Rde1 {[%clk 0:00:29]}  Qd2 {[%clk 0:00:11]} 34. a3 {[%clk 0:00:26]}  Qe3 {[%clk 0:00:10]} 35. a4 {[%clk 0:00:26]}  a5 {[%clk 0:00:10]} 36. Rgf1 {[%clk 0:00:20]}  Qc5 {[%clk 0:00:10]} 37. Qg1 {[%clk 0:00:20]}  Qb4 {[%clk 0:00:09]} 38. Ra1 {[%clk 0:00:17]}  Ba6 {[%clk 0:00:09]} 39. Rfb1 {[%clk 0:00:15]}  Qd2 {[%clk 0:00:08]} 40. Qe1 {[%clk 0:00:16]}  Qe3 {[%clk 0:00:08]} 41. Qf1 {[%clk 0:00:11]}  Bc8 {[%clk 0:00:05]} 42. Re1 {[%clk 0:00:10]}  g4 {[%clk 0:00:05]} 43. Qg1 {[%clk 0:00:09]}  Qxg1+ {[%clk 0:00:05]} 44. Rxg1 {[%clk 0:00:10]}  gxf3 {[%clk 0:00:05]} 45. Bd3 {[%clk 0:00:10]}  f2 {[%clk 0:00:06]} 46. Rgf1 {[%clk 0:00:08]}  Bh3 {[%clk 0:00:06]} 47. c5 {[%clk 0:00:08]}  Bxf1 {[%clk 0:00:06]} 48. Rxf1 {[%clk 0:00:08]}  bxc5 {[%clk 0:00:07]} 49. Bb5 {[%clk 0:00:08]}  Rf3 {[%clk 0:00:07]} 50. Kg2 {[%clk 0:00:08]}  Kg6 {[%clk 0:00:07]} 51. Bd7 {[%clk 0:00:07]}  Kg5 {[%clk 0:00:07]} 52. Bf5 {[%clk 0:00:07]}  Kf4 {[%clk 0:00:04]} 53. h3 {[%clk 0:00:06]}  Ra3 {[%clk 0:00:04]} 54. Rxf2+ {[%clk 0:00:06]}  Kg5 {[%clk 0:00:04]} 55. Rc2 {[%clk 0:00:05]}  Rxa4 {[%clk 0:00:05]} 56. Rxc5 {[%clk 0:00:06]}  Rf7 {[%clk 0:00:05]} 57. Rc6 {[%clk 0:00:06]}  Kf4 {[%clk 0:00:04]} 58. Rxh6 {[%clk 0:00:05]}  Ra2+ {[%clk 0:00:05]} 59. Kf1 {[%clk 0:00:05]}  Ra1+ {[%clk 0:00:05]} 60. Ke2 {[%clk 0:00:05]}  Rh1 {[%clk 0:00:05]} 61. Ra6 {[%clk 0:00:04]}  Rh2+ {[%clk 0:00:04]} 62. Kd3 {[%clk 0:00:05]}  Rg7 {[%clk 0:00:04]} 63. Rxa5 {[%clk 0:00:04]}  Rg3+ {[%clk 0:00:05]} 64. Kc4 {[%clk 0:00:05]}  Rc2+ {[%clk 0:00:05]} 65. Kb5 {[%clk 0:00:05]}  Rb3+ {[%clk 0:00:05]} 66. Ka6 {[%clk 0:00:05]}  Rc1 {[%clk 0:00:03]} 67. Ka7 {[%clk 0:00:05]}  Rcb1 {[%clk 0:00:03]} 68. Ra4 {[%clk 0:00:03]}  Rb7+ {[%clk 0:00:03]} 69. Ka8 {[%clk 0:00:03]}  Rb8+ {[%clk 0:00:04]} 70. Ka7 {[%clk 0:00:04]}  R8b6 {[%clk 0:00:04]} 71. Ra5 {[%clk 0:00:03]}  R6b4 {[%clk 0:00:03]} 72. Ra3 {[%clk 0:00:02]}  Rb6 {[%clk 0:00:04]} 73. Ra5 {[%clk 0:00:02]}  Rb7+ {[%clk 0:00:04]} 74. Ka8 {[%clk 0:00:03]}  Rb8+ {[%clk 0:00:04]} 75. Ka7 {[%clk 0:00:03]}  R8b6 {[%clk 0:00:04]} 76. Ra3 {[%clk 0:00:02]}  R1b2 {[%clk 0:00:05]} 77. Ra4 {[%clk 0:00:03]}  Rb7+ {[%clk 0:00:05]} 78. Ka8 {[%clk 0:00:03]}  R7b5 {[%clk 0:00:06]} 79. Ka7 {[%clk 0:00:02]}  Rb7+ {[%clk 0:00:05]} 80. Ka8 {[%clk 0:00:03]}  Kg5 {[%clk 0:00:06]} 81. Ra3 {[%clk 0:00:02]}  R7b6 {[%clk 0:00:06]} 82. Ka7 {[%clk 0:00:02]}  Kf6 {[%clk 0:00:07]} 83. h4 {[%clk 0:00:02]}  Rh2 {[%clk 0:00:05]} 84. Ra5 {[%clk 0:00:01]}  Rxh4 {[%clk 0:00:05]} 85. d6 {[%clk 0:00:01]}  Rxd6 {[%clk 0:00:04]} 86. Kb7 {[%clk 0:00:02]}  c6 {[%clk 0:00:04]} 87. Kc7 {[%clk 0:00:02]}  Ke7 {[%clk 0:00:04]} 88. Rxe5+ {[%clk 0:00:03]}  Kf6 {[%clk 0:00:03]} 89. Kxd6 {[%clk 0:00:03]}  Rh1 {[%clk 0:00:03]} 90. Re6+ {[%clk 0:00:04]}  Kf7 {[%clk 0:00:03]} 91. Kxc6 {[%clk 0:00:04]}  Rc1+ {[%clk 0:00:03]} 92. Kd5 {[%clk 0:00:05]}  Rd1+ {[%clk 0:00:03]} 93. Ke5 {[%clk 0:00:06]}  Ra1 {[%clk 0:00:04]} 94. Rf6+ {[%clk 0:00:06]}  Ke7 {[%clk 0:00:04]} 95. Rb6 {[%clk 0:00:07]}  Ra5+ {[%clk 0:00:04]} 96. Kf4 {[%clk 0:00:08]}  Ra4 {[%clk 0:00:04]} 97. Rb5 {[%clk 0:00:08]}  Ra1 {[%clk 0:00:04]} 98. Ke5 {[%clk 0:00:08]}  Ra4 {[%clk 0:00:04]} 99. Rb7+ {[%clk 0:00:08]}  Kf8 {[%clk 0:00:03]} 100. Kf6 {[%clk 0:00:09]}  Ra6+ {[%clk 0:00:04]} 101. Be6 {[%clk 0:00:09]}  Ra8 {[%clk 0:00:00]} 102. Rh7 {[%clk 0:00:09]} 1-0


[Site "https://www.chess.com"]

[Event "Titled Tuesday Blitz May 30 Early 2023"]
[White "Principe, Gerson"]
[Black "Mushini Ajay"]
[WhiteFideId "3804550"]
[BlackFideId "35066188"]
[WhiteElo "2229"]
[BlackElo "2145"]
[Result "0-1"]
[Round "01"]
[TimeControl "180+2"]
[Date "2023.05.30"]
[WhiteClock "0:00:00"]
[BlackClock "0:00:44"]

1. Nf3 {[%clk 0:03:00]}  d5 {[%clk 0:02:59]} 2. b3 {[%clk 0:02:57]}  c5 {[%clk 0:02:59]} 3. e3 {[%clk 0:02:57]}  Nc6 {[%clk 0:02:59]} 4. Bb5 {[%clk 0:02:56]}  Bd7 {[%clk 0:02:58]} 5. Bb2 {[%clk 0:02:56]}  a6 {[%clk 0:02:58]} 6. Bxc6 {[%clk 0:02:56]}  Bxc6 {[%clk 0:02:59]} 7. Ne5 {[%clk 0:02:57]}  Qc7 {[%clk 0:02:59]} 8. f4 {[%clk 0:02:57]}  Nf6 {[%clk 0:02:57]} 9. O-O {[%clk 0:02:58]}  e6 {[%clk 0:02:57]} 10. d3 {[%clk 0:02:58]}  Be7 {[%clk 0:02:56]} 11. Nd2 {[%clk 0:02:58]}  O-O {[%clk 0:02:57]} 12. a4 {[%clk 0:02:56]}  b5 {[%clk 0:02:57]} 13. Nxc6 {[%clk 0:02:53]}  Qxc6 {[%clk 0:02:57]} 14. Qe2 {[%clk 0:02:51]}  Rac8 {[%clk 0:02:51]} 15. f5 {[%clk 0:02:09]}  exf5 {[%clk 0:02:47]} 16. Rxf5 {[%clk 0:02:09]}  Rfe8 {[%clk 0:02:47]} 17. axb5 {[%clk 0:02:05]}  axb5 {[%clk 0:02:46]} 18. Raf1 {[%clk 0:02:05]}  c4 {[%clk 0:02:46]} 19. bxc4 {[%clk 0:01:59]}  bxc4 {[%clk 0:02:46]} 20. Bd4 {[%clk 0:01:44]}  cxd3 {[%clk 0:02:31]} 21. cxd3 {[%clk 0:01:45]}  Qa4 {[%clk 0:02:09]} 22. Rg5 {[%clk 0:01:36]}  Rc6 {[%clk 0:01:51]} 23. Nf3 {[%clk 0:01:26]}  Re6 {[%clk 0:01:46]} 24. Qf2 {[%clk 0:01:10]}  g6 {[%clk 0:01:43]} 25. Re5 {[%clk 0:01:02]}  Ng4 {[%clk 0:01:39]} 26. Qb2 {[%clk 0:00:14]}  Nxe5 {[%clk 0:01:35]} 27. Bxe5 {[%clk 0:00:15]}  Ba3 {[%clk 0:01:33]} 28. Qc3 {[%clk 0:00:13]}  Qb4 {[%clk 0:01:29]} 29. Qxb4 {[%clk 0:00:10]}  Bxb4 {[%clk 0:01:29]} 30. Bd4 {[%clk 0:00:11]}  Rc6 {[%clk 0:01:21]} 31. Rb1 {[%clk 0:00:10]}  Bc5 {[%clk 0:01:20]} 32. Rc1 {[%clk 0:00:09]}  Rec8 {[%clk 0:01:12]} 33. Re1 {[%clk 0:00:03]}  Bxd4 {[%clk 0:01:12]} 34. Nxd4 {[%clk 0:00:04]}  Rc1 {[%clk 0:01:12]} 35. Rxc1 {[%clk 0:00:04]}  Rxc1+ {[%clk 0:01:13]} 36. Kf2 {[%clk 0:00:05]}  Rd1 {[%clk 0:01:13]} 37. Ke2 {[%clk 0:00:04]}  Rh1 {[%clk 0:01:12]} 38. h3 {[%clk 0:00:04]}  Rg1 {[%clk 0:01:11]} 39. Kf2 {[%clk 0:00:05]}  Ra1 {[%clk 0:01:11]} 40. Ne2 {[%clk 0:00:04]}  Ra2 {[%clk 0:01:11]} 41. Kf3 {[%clk 0:00:04]}  Rd2 {[%clk 0:01:10]} 42. d4 {[%clk 0:00:05]}  g5 {[%clk 0:01:06]} 43. Nc3 {[%clk 0:00:04]}  f5 {[%clk 0:00:58]} 44. Nxd5 {[%clk 0:00:04]}  Kf7 {[%clk 0:00:57]} 45. Nb4 {[%clk 0:00:03]}  h5 {[%clk 0:00:55]} 46. Nc6 {[%clk 0:00:03]}  Kf6 {[%clk 0:00:54]} 47. Ne5 {[%clk 0:00:02]}  g4+ {[%clk 0:00:54]} 48. hxg4 {[%clk 0:00:02]}  hxg4+ {[%clk 0:00:54]} 49. Kg3 {[%clk 0:00:03]}  Re2 {[%clk 0:00:52]} 50. Nc4 {[%clk 0:00:03]}  Kg5 {[%clk 0:00:49]} 51. d5 {[%clk 0:00:02]}  Rc2 {[%clk 0:00:48]} 52. Ne5 {[%clk 0:00:02]}  Rd2 {[%clk 0:00:46]} 53. d6 {[%clk 0:00:00]}  Kf6 {[%clk 0:00:44]} 0-1


[Site "https://www.chess.com"]

[Event "Titled Tuesday Blitz May 30 Early 2023"]
[White "Fajdetic, Hrvoje"]
[Black "Souleidis, Georgios"]
[WhiteFideId "14501945"]
[BlackFideId "4206827"]
[WhiteElo "2185"]
[BlackElo "2401"]
[Result "0-1"]
[Round "01"]
[TimeControl "180+2"]
[Date "2023.05.30"]
[WhiteClock "0:00:02"]
[BlackClock "0:00:12"]

1. d4 {[%clk 0:02:58]}  Nf6 {[%clk 0:02:59]} 2. Bf4 {[%clk 0:02:57]}  g6 {[%clk 0:02:58]} 3. Nc3 {[%clk 0:02:56]}  d5 {[%clk 0:02:58]} 4. e3 {[%clk 0:02:56]}  Bg7 {[%clk 0:02:58]} 5. h4 {[%clk 0:02:56]}  h5 {[%clk 0:02:55]} 6. Nf3 {[%clk 0:02:56]}  O-O {[%clk 0:02:55]} 7. Ne5 {[%clk 0:02:56]}  c5 {[%clk 0:02:55]} 8. Be2 {[%clk 0:02:54]}  cxd4 {[%clk 0:02:54]} 9. exd4 {[%clk 0:02:55]}  Nc6 {[%clk 0:02:53]} 10. Qd2 {[%clk 0:02:33]}  Qb6 {[%clk 0:02:50]} 11. O-O-O {[%clk 0:02:30]}  Be6 {[%clk 0:02:41]} 12. f3 {[%clk 0:02:25]}  Rac8 {[%clk 0:02:33]} 13. g4 {[%clk 0:02:21]}  Rfd8 {[%clk 0:02:30]} 14. Rhg1 {[%clk 0:01:19]}  a6 {[%clk 0:02:26]} 15. gxh5 {[%clk 0:00:59]}  Nxh5 {[%clk 0:02:26]} 16. Nxg6 {[%clk 0:00:50]}  fxg6 {[%clk 0:02:23]} 17. Rxg6 {[%clk 0:00:51]}  Bf7 {[%clk 0:02:09]} 18. Rxg7+ {[%clk 0:00:42]}  Nxg7 {[%clk 0:01:54]} 19. Rg1 {[%clk 0:00:41]}  Qxd4 {[%clk 0:01:33]} 20. Qxd4 {[%clk 0:00:29]}  Nxd4 {[%clk 0:01:33]} 21. Rxg7+ {[%clk 0:00:29]}  Kxg7 {[%clk 0:01:31]} 22. Be5+ {[%clk 0:00:30]}  Kh7 {[%clk 0:01:30]} 23. Bxd4 {[%clk 0:00:30]}  Bh5 {[%clk 0:01:19]} 24. Bd3+ {[%clk 0:00:20]}  Bg6 {[%clk 0:01:18]} 25. Bf1 {[%clk 0:00:18]}  e6 {[%clk 0:01:17]} 26. Bh3 {[%clk 0:00:18]}  Bf5 {[%clk 0:01:10]} 27. Bxf5+ {[%clk 0:00:16]}  exf5 {[%clk 0:01:11]} 28. Bf6 {[%clk 0:00:15]}  Rd7 {[%clk 0:01:06]} 29. Kd2 {[%clk 0:00:15]}  Rc6 {[%clk 0:00:46]} 30. Bg5 {[%clk 0:00:14]}  d4 {[%clk 0:00:30]} 31. Ne2 {[%clk 0:00:13]}  Rcd6 {[%clk 0:00:29]} 32. Nf4 {[%clk 0:00:07]}  b5 {[%clk 0:00:23]} 33. a3 {[%clk 0:00:07]}  a5 {[%clk 0:00:23]} 34. Nd3 {[%clk 0:00:07]}  Rb7 {[%clk 0:00:22]} 35. Bf4 {[%clk 0:00:06]}  Rd5 {[%clk 0:00:22]} 36. Bg5 {[%clk 0:00:05]}  b4 {[%clk 0:00:20]} 37. axb4 {[%clk 0:00:06]}  axb4 {[%clk 0:00:21]} 38. Bf6 {[%clk 0:00:06]}  Rb6 {[%clk 0:00:20]} 39. Bg5 {[%clk 0:00:05]}  Rb7 {[%clk 0:00:16]} 40. b3 {[%clk 0:00:05]}  Ra5 {[%clk 0:00:14]} 41. Bd8 {[%clk 0:00:04]}  Ra1 {[%clk 0:00:14]} 42. Bf6 {[%clk 0:00:05]}  Rh1 {[%clk 0:00:13]} 43. Bxd4 {[%clk 0:00:04]}  Rh2+ {[%clk 0:00:13]} 44. Kc1 {[%clk 0:00:04]}  Rxh4 {[%clk 0:00:13]} 45. Bc5 {[%clk 0:00:04]}  Rh3 {[%clk 0:00:13]} 46. f4 {[%clk 0:00:03]}  Kg6 {[%clk 0:00:13]} 47. Kb2 {[%clk 0:00:03]}  Rf3 {[%clk 0:00:13]} 48. Bd6 {[%clk 0:00:02]}  Kh5 {[%clk 0:00:12]} 49. Nxb4 {[%clk 0:00:02]}  Rxb4 {[%clk 0:00:08]} 50. Bxb4 {[%clk 0:00:03]}  Rxf4 {[%clk 0:00:08]} 51. Bd6 {[%clk 0:00:03]}  Rd4 {[%clk 0:00:08]} 52. Be5 {[%clk 0:00:04]}  Rd5 {[%clk 0:00:09]} 53. Bc7 {[%clk 0:00:04]}  Rd7 {[%clk 0:00:09]} 54. Bf4 {[%clk 0:00:04]}  Kg4 {[%clk 0:00:09]} 55. Bc1 {[%clk 0:00:03]}  f4 {[%clk 0:00:10]} 56. b4 {[%clk 0:00:03]}  f3 {[%clk 0:00:10]} 57. Be3 {[%clk 0:00:03]}  Re7 {[%clk 0:00:11]} 58. Bc5 {[%clk 0:00:04]}  Rc7 {[%clk 0:00:10]} 59. Bb6 {[%clk 0:00:04]}  Rb7 {[%clk 0:00:10]} 60. Bc5 {[%clk 0:00:04]}  Rxb4+ {[%clk 0:00:10]} 61. Kc3 {[%clk 0:00:04]}  Rb8 {[%clk 0:00:10]} 62. Kd4 {[%clk 0:00:04]}  Rc8 {[%clk 0:00:10]} 63. Bb6 {[%clk 0:00:03]}  f2 {[%clk 0:00:10]} 64. Kd5 {[%clk 0:00:04]}  f1=Q {[%clk 0:00:10]} 65. c4 {[%clk 0:00:05]}  Qxc4+ {[%clk 0:00:11]} 66. Kd6 {[%clk 0:00:05]}  Qc6+ {[%clk 0:00:11]} 67. Ke7 {[%clk 0:00:02]}  Re8+ {[%clk 0:00:12]} 0-1


[Site "https://www.chess.com"]

[Event "Titled Tuesday Blitz May 30 Early 2023"]
[White "Korchmar, Vasiliy"]
[Black "Ziatdinov, Raset"]
[WhiteFideId "24131750"]
[BlackFideId "2015323"]
[WhiteElo "2370"]
[BlackElo "2220"]
[Result "1-0"]
[Round "01"]
[TimeControl "180+2"]
[Date "2023.05.30"]
[WhiteClock "0:01:13"]
[BlackClock "0:01:21"]

1. e4 {[%clk 0:02:58]}  e6 {[%clk 0:02:59]} 2. d4 {[%clk 0:02:58]}  d5 {[%clk 0:02:59]} 3. e5 {[%clk 0:02:59]}  c5 {[%clk 0:02:59]} 4. c3 {[%clk 0:02:59]}  Nc6 {[%clk 0:02:59]} 5. Nf3 {[%clk 0:03:00]}  Bd7 {[%clk 0:02:56]} 6. Be2 {[%clk 0:02:59]}  Rc8 {[%clk 0:02:55]} 7. O-O {[%clk 0:02:57]}  cxd4 {[%clk 0:02:56]} 8. cxd4 {[%clk 0:02:58]}  f6 {[%clk 0:02:56]} 9. Nc3 {[%clk 0:02:47]}  fxe5 {[%clk 0:02:47]} 10. dxe5 {[%clk 0:02:42]}  Nge7 {[%clk 0:02:47]} 11. Nb5 {[%clk 0:02:35]}  Nf5 {[%clk 0:02:45]} 12. Bd3 {[%clk 0:02:35]}  g6 {[%clk 0:02:45]} 13. Bxf5 {[%clk 0:02:01]}  exf5 {[%clk 0:02:21]} 14. e6 {[%clk 0:01:55]}  Bxe6 {[%clk 0:02:15]} 15. Re1 {[%clk 0:01:55]}  Qd7 {[%clk 0:02:07]} 16. Ng5 {[%clk 0:01:48]}  Nd8 {[%clk 0:02:07]} 17. Nd4 {[%clk 0:01:48]}  Rc6 {[%clk 0:02:00]} 18. Nxc6 {[%clk 0:01:40]}  bxc6 {[%clk 0:02:01]} 19. Qe2 {[%clk 0:01:25]}  Ke7 {[%clk 0:01:54]} 20. Qe5 {[%clk 0:01:16]}  Rg8 {[%clk 0:01:53]} 21. Nxe6 {[%clk 0:01:13]}  Nxe6 {[%clk 0:01:50]} 22. Bg5+ {[%clk 0:01:13]}  Kf7 {[%clk 0:01:40]} 23. Qf6+ {[%clk 0:01:12]}  Ke8 {[%clk 0:01:21]} 24. Rxe6+ {[%clk 0:01:13]} 1-0


[Site "https://www.chess.com"]

[Event "Titled Tuesday Blitz May 30 Early 2023"]
[White "Pinheiro, Iung Alicio de O."]
[Black "Avalos Parra, Joao"]
[WhiteFideId "2104350"]
[BlackFideId "3402541"]
[WhiteElo "2283"]
[BlackElo "2173"]
[Result "0-1"]
[Round "01"]
[TimeControl "180+2"]
[Date "2023.05.30"]
[WhiteClock "0:00:00"]
[BlackClock "0:00:07"]

1. e4 {[%clk 0:02:58]}  e5 {[%clk 0:02:56]} 2. Nf3 {[%clk 0:02:58]}  Nc6 {[%clk 0:02:54]} 3. Bc4 {[%clk 0:02:57]}  Bc5 {[%clk 0:02:54]} 4. b4 {[%clk 0:02:57]}  Bxb4 {[%clk 0:02:53]} 5. c3 {[%clk 0:02:57]}  Be7 {[%clk 0:02:50]} 6. d4 {[%clk 0:02:55]}  Na5 {[%clk 0:02:44]} 7. Be2 {[%clk 0:02:53]}  d6 {[%clk 0:02:43]} 8. dxe5 {[%clk 0:02:50]}  dxe5 {[%clk 0:02:44]} 9. Qa4+ {[%clk 0:02:49]}  c6 {[%clk 0:02:40]} 10. Nxe5 {[%clk 0:02:49]}  Nf6 {[%clk 0:02:38]} 11. Nd2 {[%clk 0:02:45]}  O-O {[%clk 0:02:37]} 12. O-O {[%clk 0:02:44]}  Be6 {[%clk 0:02:35]} 13. Rb1 {[%clk 0:02:34]}  Qc7 {[%clk 0:02:30]} 14. Ndf3 {[%clk 0:02:16]}  b5 {[%clk 0:02:15]} 15. Qc2 {[%clk 0:02:14]}  Rad8 {[%clk 0:02:02]} 16. h3 {[%clk 0:02:11]}  a6 {[%clk 0:01:52]} 17. Bf4 {[%clk 0:02:07]}  Qc8 {[%clk 0:01:52]} 18. c4 {[%clk 0:01:51]}  Nb7 {[%clk 0:01:38]} 19. Rfe1 {[%clk 0:01:43]}  Nc5 {[%clk 0:01:34]} 20. Bf1 {[%clk 0:01:42]}  Na4 {[%clk 0:01:24]} 21. Rbc1 {[%clk 0:01:34]}  Ba3 {[%clk 0:01:16]} 22. Rcd1 {[%clk 0:01:25]}  Bb4 {[%clk 0:01:10]} 23. Rxd8 {[%clk 0:01:15]}  Rxd8 {[%clk 0:01:11]} 24. Rb1 {[%clk 0:01:06]}  Ba5 {[%clk 0:00:54]} 25. cxb5 {[%clk 0:00:56]}  cxb5 {[%clk 0:00:55]} 26. Nc6 {[%clk 0:00:48]}  Re8 {[%clk 0:00:40]} 27. Rc1 {[%clk 0:00:43]}  Bc3 {[%clk 0:00:33]} 28. Ncd4 {[%clk 0:00:31]}  Bc4 {[%clk 0:00:29]} 29. e5 {[%clk 0:00:21]}  Nd5 {[%clk 0:00:27]} 30. Bg3 {[%clk 0:00:21]}  Nb4 {[%clk 0:00:26]} 31. Qe4 {[%clk 0:00:18]}  Bd5 {[%clk 0:00:25]} 32. Qh4 {[%clk 0:00:17]}  h6 {[%clk 0:00:25]} 33. Bf4 {[%clk 0:00:16]}  Nxa2 {[%clk 0:00:22]} 34. Rd1 {[%clk 0:00:15]}  Nb2 {[%clk 0:00:18]} 35. Ra1 {[%clk 0:00:12]}  Qd8 {[%clk 0:00:17]} 36. Qh5 {[%clk 0:00:11]}  Nb4 {[%clk 0:00:14]} 37. Nf5 {[%clk 0:00:07]}  N2d3 {[%clk 0:00:14]} 38. Bxh6 {[%clk 0:00:04]}  Bxf3 {[%clk 0:00:10]} 39. gxf3 {[%clk 0:00:03]}  g6 {[%clk 0:00:08]} 40. Qg4 {[%clk 0:00:00]}  Nxe5 {[%clk 0:00:07]} 0-1


[Site "https://www.chess.com"]